[Event "Late-Titled-Tuesday-Blitz-October-17-2023"]
[Site "Chess.com"]
[Date "2023.10.17"]
[Round "3"]
[White "Laico"]
[Black "MKlose11"]
[Result "0-1"]
[WhiteElo "2440"]
[BlackElo "2629"]
[TimeControl "180+1"]
[EndTime "14:28:19 PDT"]
[Termination "MKlose11 won on time"]

1. e4 {[%clk 0:03:00.9]} 1... e6 {[%clk 0:02:59.9]} 2. d4 {[%clk 0:02:59.9]}
2... d5 {[%clk 0:03:00.8]} 3. Nd2 {[%clk 0:03:00.1]} 3... Be7 {[%clk 0:02:59.9]}
4. Bd3 {[%clk 0:02:58.9]} 4... c5 {[%clk 0:02:59.1]} 5. c3 {[%clk 0:02:58.9]}
5... Nf6 {[%clk 0:02:59.2]} 6. e5 {[%clk 0:02:59.1]} 6... Nfd7 {[%clk
0:02:59.1]} 7. Ne2 {[%clk 0:02:59.7]} 7... Nc6 {[%clk 0:02:59]} 8. f4 {[%clk
0:02:59.3]} 8... f6 {[%clk 0:02:59.4]} 9. Nf3 {[%clk 0:02:52.9]} 9... cxd4
{[%clk 0:02:59.1]} 10. cxd4 {[%clk 0:02:52.2]} 10... Bb4+ {[%clk 0:02:58.7]} 11.
Bd2 {[%clk 0:02:51.3]} 11... Qb6 {[%clk 0:02:55.6]} 12. a3 {[%clk 0:02:48.1]}
12... Bxd2+ {[%clk 0:02:55.5]} 13. Qxd2 {[%clk 0:02:49]} 13... O-O {[%clk
0:02:53.2]} 14. b4 {[%clk 0:02:42.2]} 14... a6 {[%clk 0:02:31.6]} 15. Rc1 {[%clk
0:02:28.3]} 15... Kh8 {[%clk 0:02:30.9]} 16. O-O {[%clk 0:02:10.8]} 16... Qd8
{[%clk 0:02:24.2]} 17. Bb1 {[%clk 0:02:02.4]} 17... f5 {[%clk 0:02:21.2]} 18.
Rc3 {[%clk 0:01:42.6]} 18... Nb6 {[%clk 0:02:19.7]} 19. Bd3 {[%clk 0:01:37.2]}
19... Bd7 {[%clk 0:02:19.8]} 20. Rfc1 {[%clk 0:01:36.8]} 20... Rc8 {[%clk
0:02:19.5]} 21. Qc2 {[%clk 0:01:15.2]} 21... Qe7 {[%clk 0:02:18.5]} 22. Nd2
{[%clk 0:01:13.1]} 22... Na7 {[%clk 0:02:18.2]} 23. Rc5 {[%clk 0:01:06.3]} 23...
Ba4 {[%clk 0:02:05.3]} 24. Qb2 {[%clk 0:01:01.2]} 24... Bc6 {[%clk 0:02:02.9]}
25. Nc3 {[%clk 0:00:57.8]} 25... Nd7 {[%clk 0:01:56.5]} 26. Ra5 {[%clk
0:00:54.7]} 26... g5 {[%clk 0:01:50.9]} 27. a4 {[%clk 0:00:52.1]} 27... gxf4
{[%clk 0:01:02.1]} 28. b5 {[%clk 0:00:51.8]} 28... Rg8 {[%clk 0:00:50]} 29. bxc6
{[%clk 0:00:37]} 29... Nxc6 {[%clk 0:00:50.9]} 30. Rc5 {[%clk 0:00:25.4]} 30...
Nxc5 {[%clk 0:00:42.7]} 31. dxc5 {[%clk 0:00:26.3]} 31... Nxe5 {[%clk
0:00:43.3]} 32. Ne2 {[%clk 0:00:18.7]} 32... Qg7 {[%clk 0:00:38.6]} 33. Nxf4
{[%clk 0:00:18.9]} 33... Nf3+ {[%clk 0:00:35.3]} 34. Nxf3 {[%clk 0:00:09.2]}
34... Qxb2 {[%clk 0:00:36.2]} 35. Re1 {[%clk 0:00:05.4]} 35... Rxc5 {[%clk
0:00:31.5]} 36. Rxe6 {[%clk 0:00:01.5]} 36... Rc1+ {[%clk 0:00:30.8]} 37. Bf1
{[%clk 0:00:01.5]} 37... Qb6+ {[%clk 0:00:27.6]} 0-1

[Event "Late-Titled-Tuesday-Blitz-October-17-2023"]
[Site "Chess.com"]
[Date "2023.10.17"]
[Round "3"]
[White "AlexandraBotez"]
[Black "dianamirza"]
[Result "1-0"]
[WhiteElo "2350"]
[BlackElo "1961"]
[TimeControl "180+1"]
[EndTime "14:28:20 PDT"]
[Termination "AlexandraBotez won by resignation"]

1. Nf3 {[%clk 0:03:00.1]} 1... d5 {[%clk 0:02:57.2]} 2. d4 {[%clk 0:02:59.5]}
2... c6 {[%clk 0:02:51.9]} 3. Bf4 {[%clk 0:02:58.1]} 3... Bf5 {[%clk 0:02:51.7]}
4. e3 {[%clk 0:02:58.2]} 4... h5 {[%clk 0:02:51.6]} 5. h4 {[%clk 0:02:56.8]}
5... Nf6 {[%clk 0:02:50.4]} 6. Nbd2 {[%clk 0:02:55.8]} 6... Ne4 {[%clk
0:02:49.3]} 7. Bd3 {[%clk 0:02:53.4]} 7... e6 {[%clk 0:02:41.9]} 8. Ne5 {[%clk
0:02:50.8]} 8... Nd7 {[%clk 0:02:36.8]} 9. Nxe4 {[%clk 0:02:48.2]} 9... Bxe4
{[%clk 0:02:29.8]} 10. Bxe4 {[%clk 0:02:43]} 10... dxe4 {[%clk 0:02:30.7]} 11.
c4 {[%clk 0:02:42.2]} 11... Bb4+ {[%clk 0:02:22.2]} 12. Ke2 {[%clk 0:02:40.2]}
12... Nxe5 {[%clk 0:02:13.6]} 13. Bxe5 {[%clk 0:02:39.7]} 13... f6 {[%clk
0:02:13.6]} 14. Bg3 {[%clk 0:02:38.7]} 14... Kf7 {[%clk 0:02:12.3]} 15. Qb3
{[%clk 0:02:36.4]} 15... Qb6 {[%clk 0:02:08.9]} 16. a3 {[%clk 0:02:26.1]} 16...
Be7 {[%clk 0:02:06.8]} 17. Qxb6 {[%clk 0:02:24.5]} 17... axb6 {[%clk 0:02:07.7]}
18. b4 {[%clk 0:02:22.8]} 18... c5 {[%clk 0:02:05.5]} 19. Rhb1 {[%clk
0:02:11.3]} 19... cxb4 {[%clk 0:01:59.9]} 20. axb4 {[%clk 0:02:08.8]} 20... Rxa1
{[%clk 0:01:59.1]} 21. Rxa1 {[%clk 0:02:09.7]} 21... Bxb4 {[%clk 0:01:54]} 22.
Rb1 {[%clk 0:02:09.5]} 22... Ba5 {[%clk 0:01:52.8]} 23. c5 {[%clk 0:02:06.8]}
23... bxc5 {[%clk 0:01:46.5]} 24. Rxb7+ {[%clk 0:02:06.2]} 24... Kg6 {[%clk
0:01:47.1]} 25. dxc5 {[%clk 0:02:06.2]} 25... Rd8 {[%clk 0:01:37.3]} 26. Bd6
{[%clk 0:02:06.4]} 26... Rc8 {[%clk 0:01:27.4]} 27. f3 {[%clk 0:00:56.7]} 27...
exf3+ {[%clk 0:01:23.2]} 28. gxf3 {[%clk 0:00:56.6]} 28... Bc3 {[%clk
0:01:01.3]} 29. Kd3 {[%clk 0:00:31.3]} 29... Be5 {[%clk 0:00:58.2]} 30. Bxe5
{[%clk 0:00:29.3]} 30... fxe5 {[%clk 0:00:59.1]} 31. Kc4 {[%clk 0:00:29.9]}
31... Kf6 {[%clk 0:00:55.8]} 32. Kb5 {[%clk 0:00:29.7]} 32... g5 {[%clk
0:00:55.1]} 33. hxg5+ {[%clk 0:00:23.7]} 33... Kxg5 {[%clk 0:00:56]} 34. c6
{[%clk 0:00:23]} 34... Kh4 {[%clk 0:00:44]} 35. Rg7 {[%clk 0:00:20.7]} 35... Kh3
{[%clk 0:00:37.8]} 36. Kc5 {[%clk 0:00:21.1]} 36... h4 {[%clk 0:00:38]} 37. Kd6
{[%clk 0:00:21.2]} 37... Kh2 {[%clk 0:00:33.6]} 38. c7 {[%clk 0:00:21.7]} 38...
h3 {[%clk 0:00:32.8]} 39. Kd7 {[%clk 0:00:22.2]} 39... Rxc7+ {[%clk 0:00:24.9]}
40. Kxc7 {[%clk 0:00:22.2]} 40... Kh1 {[%clk 0:00:23.2]} 41. Kd6 {[%clk
0:00:21.5]} 41... h2 {[%clk 0:00:23.6]} 42. Rh7 {[%clk 0:00:22]} 42... Kg2
{[%clk 0:00:20.6]} 43. Kxe5 {[%clk 0:00:22.4]} 1-0

[Event "Late-Titled-Tuesday-Blitz-October-17-2023"]
[Site "Chess.com"]
[Date "2023.10.17"]
[Round "3"]
[White "NateSolon"]
[Black "Haykoooo0o"]
[Result "0-1"]
[WhiteElo "2617"]
[BlackElo "2459"]
[TimeControl "180+1"]
[EndTime "14:28:23 PDT"]
[Termination "Haykoooo0o won by resignation"]

1. d4 {[%clk 0:03:00.9]} 1... d5 {[%clk 0:02:59.4]} 2. Bf4 {[%clk 0:03:00.4]}
2... c5 {[%clk 0:02:58.4]} 3. e3 {[%clk 0:03:00.5]} 3... Nc6 {[%clk 0:02:58.4]}
4. Nf3 {[%clk 0:03:00.8]} 4... cxd4 {[%clk 0:02:58.6]} 5. exd4 {[%clk
0:03:01.7]} 5... Bg4 {[%clk 0:02:58.3]} 6. c3 {[%clk 0:02:59.2]} 6... e6 {[%clk
0:02:57.6]} 7. Nbd2 {[%clk 0:02:52.8]} 7... Bd6 {[%clk 0:02:56.9]} 8. Bxd6
{[%clk 0:02:52.7]} 8... Qxd6 {[%clk 0:02:57.8]} 9. Bd3 {[%clk 0:02:52.4]} 9...
Nf6 {[%clk 0:02:57.4]} 10. O-O {[%clk 0:02:51.3]} 10... O-O {[%clk 0:02:57.4]}
11. h3 {[%clk 0:02:49.8]} 11... Bh5 {[%clk 0:02:57.2]} 12. Re1 {[%clk
0:02:49.8]} 12... Qc7 {[%clk 0:02:56.8]} 13. a4 {[%clk 0:02:41.2]} 13... Rfc8
{[%clk 0:02:55.2]} 14. Nf1 {[%clk 0:02:20.2]} 14... Rab8 {[%clk 0:02:50.9]} 15.
Ng3 {[%clk 0:02:16.8]} 15... Bg6 {[%clk 0:02:46]} 16. Bxg6 {[%clk 0:02:16.3]}
16... hxg6 {[%clk 0:02:46.9]} 17. Ne5 {[%clk 0:02:14.2]} 17... Nxe5 {[%clk
0:02:46.4]} 18. Rxe5 {[%clk 0:02:09.4]} 18... b5 {[%clk 0:02:43.5]} 19. axb5
{[%clk 0:02:08.2]} 19... Rxb5 {[%clk 0:02:44]} 20. Re2 {[%clk 0:02:03.6]} 20...
Rcb8 {[%clk 0:02:42.7]} 21. Ra2 {[%clk 0:02:00.6]} 21... Qc4 {[%clk 0:02:37.8]}
22. Qa1 {[%clk 0:01:57.6]} 22... Ne4 {[%clk 0:02:32]} 23. Rc2 {[%clk 0:01:32]}
23... Nxg3 {[%clk 0:02:27.4]} 24. fxg3 {[%clk 0:01:32.9]} 24... Qd3 {[%clk
0:02:19.8]} 25. Rf2 {[%clk 0:01:33]} 25... Qxg3 {[%clk 0:02:17.7]} 26. Rxa7
{[%clk 0:01:32.5]} 26... R5b7 {[%clk 0:02:09]} 27. Rxb7 {[%clk 0:01:27.8]} 27...
Rxb7 {[%clk 0:02:09.9]} 28. Qa8+ {[%clk 0:01:24.3]} 28... Qb8 {[%clk 0:02:09.1]}
29. Qxb8+ {[%clk 0:01:23.8]} 29... Rxb8 {[%clk 0:02:10]} 30. b4 {[%clk
0:01:21.8]} 30... Kf8 {[%clk 0:02:07.2]} 31. Kf1 {[%clk 0:01:21.8]} 31... Ke7
{[%clk 0:02:07.7]} 32. Ke2 {[%clk 0:01:22.4]} 32... f6 {[%clk 0:02:08]} 33. Kd3
{[%clk 0:01:22.6]} 33... Ra8 {[%clk 0:02:05.8]} 34. Rb2 {[%clk 0:01:19.2]} 34...
Kd6 {[%clk 0:02:05.1]} 35. b5 {[%clk 0:01:12.5]} 35... Kc7 {[%clk 0:02:04]} 36.
c4 {[%clk 0:01:11.9]} 36... Ra3+ {[%clk 0:02:00.9]} 37. Ke2 {[%clk 0:01:08.4]}
37... dxc4 {[%clk 0:02:00.6]} 38. Rc2 {[%clk 0:01:08.6]} 38... c3 {[%clk
0:01:54.8]} 39. Kd3 {[%clk 0:01:08.9]} 39... Kb6 {[%clk 0:01:55.2]} 40. Re2
{[%clk 0:01:08.6]} 40... c2+ {[%clk 0:01:01.6]} 41. Kd2 {[%clk 0:01:08.9]} 41...
Ra1 {[%clk 0:00:53.1]} 42. Rxe6+ {[%clk 0:01:07.3]} 42... Kxb5 {[%clk
0:00:53.7]} 43. Kxc2 {[%clk 0:01:08.2]} 43... Kc4 {[%clk 0:00:48.8]} 44. Re7
{[%clk 0:01:06.5]} 44... Ra2+ {[%clk 0:00:47.7]} 45. Kd1 {[%clk 0:01:05.6]}
45... Rxg2 {[%clk 0:00:48.2]} 46. Rxg7 {[%clk 0:01:04.5]} 46... Kxd4 {[%clk
0:00:47.7]} 47. h4 {[%clk 0:01:04.9]} 47... Rg4 {[%clk 0:00:44.7]} 48. Rh7
{[%clk 0:01:01.1]} 48... Ke3 {[%clk 0:00:41.3]} 49. h5 {[%clk 0:00:58]} 49...
Rg1+ {[%clk 0:00:36]} 50. Kc2 {[%clk 0:00:57.8]} 50... g5 {[%clk 0:00:35.2]} 51.
Rf7 {[%clk 0:00:56.6]} 51... Rh1 {[%clk 0:00:33.7]} 52. Rxf6 {[%clk 0:00:49.6]}
52... Rxh5 {[%clk 0:00:33.2]} 53. Re6+ {[%clk 0:00:43.5]} 53... Kf3 {[%clk
0:00:32.7]} 54. Kd3 {[%clk 0:00:43.4]} 54... g4 {[%clk 0:00:30.9]} 55. Rf6+
{[%clk 0:00:43.5]} 55... Kg2 {[%clk 0:00:30.3]} 56. Ke2 {[%clk 0:00:43.8]} 56...
Re5+ {[%clk 0:00:30]} 57. Kd3 {[%clk 0:00:44.3]} 57... g3 {[%clk 0:00:29]} 0-1

[Event "Late-Titled-Tuesday-Blitz-October-17-2023"]
[Site "Chess.com"]
[Date "2023.10.17"]
[Round "3"]
[White "ellatambien"]
[Black "Misticpikachu"]
[Result "1-0"]
[WhiteElo "2624"]
[BlackElo "2415"]
[TimeControl "180+1"]
[EndTime "14:28:23 PDT"]
[Termination "ellatambien won by checkmate"]

1. e4 {[%clk 0:03:00.9]} 1... e6 {[%clk 0:02:58.1]} 2. d4 {[%clk 0:02:59.1]}
2... d5 {[%clk 0:02:58.8]} 3. Nd2 {[%clk 0:02:58.2]} 3... c5 {[%clk 0:02:54.5]}
4. exd5 {[%clk 0:02:56.3]} 4... Qxd5 {[%clk 0:02:49.1]} 5. dxc5 {[%clk
0:02:55.4]} 5... Qxc5 {[%clk 0:02:48.8]} 6. Ngf3 {[%clk 0:02:52.8]} 6... Nf6
{[%clk 0:02:49.2]} 7. Bd3 {[%clk 0:02:44.1]} 7... Be7 {[%clk 0:02:48.9]} 8. O-O
{[%clk 0:02:41.5]} 8... O-O {[%clk 0:02:49]} 9. Qe2 {[%clk 0:02:36.5]} 9... Nc6
{[%clk 0:02:45.3]} 10. Ne4 {[%clk 0:02:31.6]} 10... Qh5 {[%clk 0:02:40]} 11. a4
{[%clk 0:02:23]} 11... b6 {[%clk 0:02:39.6]} 12. c3 {[%clk 0:02:17.9]} 12... Bb7
{[%clk 0:02:39.9]} 13. Ng3 {[%clk 0:02:12]} 13... Qd5 {[%clk 0:02:26.6]} 14. Rd1
{[%clk 0:02:11.5]} 14... Rfd8 {[%clk 0:01:36.4]} 15. Bxh7+ {[%clk 0:02:10.3]}
15... Nxh7 {[%clk 0:01:35.4]} 16. Rxd5 {[%clk 0:02:10.6]} 16... Rxd5 {[%clk
0:01:36.3]} 17. Be3 {[%clk 0:02:08.2]} 17... Rad8 {[%clk 0:01:34.6]} 18. h3
{[%clk 0:02:07.4]} 18... Nf6 {[%clk 0:01:09]} 19. Nd2 {[%clk 0:02:02]} 19... Ne5
{[%clk 0:01:05.5]} 20. Nc4 {[%clk 0:01:57.3]} 20... Ba6 {[%clk 0:01:00.2]} 21.
b3 {[%clk 0:01:57]} 21... Nxc4 {[%clk 0:00:56.5]} 22. bxc4 {[%clk 0:01:56.6]}
22... Rc8 {[%clk 0:00:56]} 23. Rd1 {[%clk 0:01:48.3]} 23... Bxc4 {[%clk
0:00:53.2]} 24. Qf3 {[%clk 0:01:48.2]} 24... Bb3 {[%clk 0:00:49.7]} 25. Rxd5
{[%clk 0:01:47.4]} 25... Bxd5 {[%clk 0:00:50.6]} 26. Qf4 {[%clk 0:01:42.9]}
26... Ne8 {[%clk 0:00:36.8]} 27. Bd4 {[%clk 0:01:41.4]} 27... Bf6 {[%clk
0:00:36.7]} 28. Ne4 {[%clk 0:01:37.6]} 28... Bxe4 {[%clk 0:00:32.7]} 29. Qxe4
{[%clk 0:01:35.1]} 29... Bxd4 {[%clk 0:00:32.8]} 30. Qxd4 {[%clk 0:01:34.3]}
30... Nf6 {[%clk 0:00:28.8]} 31. c4 {[%clk 0:01:28.8]} 31... Rc5 {[%clk
0:00:27.3]} 32. Qd8+ {[%clk 0:01:26.4]} 32... Kh7 {[%clk 0:00:26.9]} 33. Qe7
{[%clk 0:01:27]} 33... Rxc4 {[%clk 0:00:24.5]} 34. Qxa7 {[%clk 0:01:26.8]} 34...
Nd5 {[%clk 0:00:24.9]} 35. Qxf7 {[%clk 0:01:26.2]} 35... Rxa4 {[%clk 0:00:22]}
36. Qxe6 {[%clk 0:01:26.3]} 36... Ra1+ {[%clk 0:00:21.9]} 37. Kh2 {[%clk
0:01:25.9]} 37... Ra5 {[%clk 0:00:19.2]} 38. Qe4+ {[%clk 0:01:15.6]} 38... Kh8
{[%clk 0:00:18.8]} 39. f4 {[%clk 0:01:14.6]} 39... Nf6 {[%clk 0:00:18]} 40. Qd4
{[%clk 0:01:13.5]} 40... Rd5 {[%clk 0:00:06.3]} 41. Qxb6 {[%clk 0:01:12.6]}
41... Kh7 {[%clk 0:00:07.2]} 42. Qb1+ {[%clk 0:01:11.7]} 42... Kh8 {[%clk
0:00:07.1]} 43. g4 {[%clk 0:01:11.9]} 43... Rd2+ {[%clk 0:00:07.4]} 44. Kg3
{[%clk 0:01:10.9]} 44... Nd5 {[%clk 0:00:06.8]} 45. Qe4 {[%clk 0:01:07.2]} 45...
Rd1 {[%clk 0:00:04.3]} 46. g5 {[%clk 0:01:04.9]} 46... Nc3 {[%clk 0:00:02.5]}
47. Qe8+ {[%clk 0:01:03.3]} 47... Kh7 {[%clk 0:00:02.7]} 48. f5 {[%clk
0:00:58.1]} 48... Rd3+ {[%clk 0:00:02.7]} 49. Kh4 {[%clk 0:00:56.5]} 49... Rd4+
{[%clk 0:00:01.7]} 50. Kh5 {[%clk 0:00:56.8]} 50... Rd8 {[%clk 0:00:01.6]} 51.
g6# {[%clk 0:00:56.1]} 1-0

[Event "Late-Titled-Tuesday-Blitz-October-17-2023"]
[Site "Chess.com"]
[Date "2023.10.17"]
[Round "3"]
[White "Lion_DL"]
[Black "Deeper44"]
[Result "0-1"]
[WhiteElo "2452"]
[BlackElo "2638"]
[TimeControl "180+1"]
[EndTime "14:28:25 PDT"]
[Termination "Deeper44 won by resignation"]

1. d4 {[%clk 0:02:57]} 1... Nf6 {[%clk 0:02:58.2]} 2. c4 {[%clk 0:02:56.2]} 2...
g6 {[%clk 0:02:57.7]} 3. h4 {[%clk 0:02:55.1]} 3... Bg7 {[%clk 0:02:57.3]} 4.
Nc3 {[%clk 0:02:54]} 4... d6 {[%clk 0:02:56.8]} 5. e4 {[%clk 0:02:52.8]} 5...
Nbd7 {[%clk 0:02:50.9]} 6. Be2 {[%clk 0:02:46]} 6... e5 {[%clk 0:02:50.3]} 7. d5
{[%clk 0:02:43.3]} 7... Nc5 {[%clk 0:02:49.5]} 8. f3 {[%clk 0:02:42.8]} 8... a5
{[%clk 0:02:47.3]} 9. g4 {[%clk 0:02:21.2]} 9... h5 {[%clk 0:02:44.9]} 10. g5
{[%clk 0:02:11.8]} 10... Nfd7 {[%clk 0:02:44.5]} 11. Be3 {[%clk 0:02:11.8]}
11... O-O {[%clk 0:02:41.6]} 12. Nh3 {[%clk 0:02:10.4]} 12... c6 {[%clk
0:02:29.2]} 13. Qd2 {[%clk 0:02:09.7]} 13... cxd5 {[%clk 0:02:25.8]} 14. Nxd5
{[%clk 0:02:09.1]} 14... Ne6 {[%clk 0:02:21.5]} 15. O-O-O {[%clk 0:01:56.5]}
15... a4 {[%clk 0:02:13.3]} 16. Kb1 {[%clk 0:01:53.5]} 16... Nd4 {[%clk
0:02:01]} 17. f4 {[%clk 0:01:49.5]} 17... Nxe2 {[%clk 0:01:59.5]} 18. Qxe2
{[%clk 0:01:48.6]} 18... exf4 {[%clk 0:01:58.5]} 19. Nhxf4 {[%clk 0:01:47.1]}
19... Re8 {[%clk 0:01:54.2]} 20. Qc2 {[%clk 0:01:26.2]} 20... a3 {[%clk
0:01:47.3]} 21. b3 {[%clk 0:01:21.8]} 21... Qa5 {[%clk 0:01:37.8]} 22. Bd4
{[%clk 0:01:20.2]} 22... Ne5 {[%clk 0:01:35.4]} 23. Bc3 {[%clk 0:01:16]} 23...
Qd8 {[%clk 0:01:29.8]} 24. Rhf1 {[%clk 0:01:13.2]} 24... Bg4 {[%clk 0:01:26.7]}
25. Rd2 {[%clk 0:01:11.2]} 25... b5 {[%clk 0:01:25.8]} 26. c5 {[%clk 0:01:04.4]}
26... Nf3 {[%clk 0:01:02.9]} 27. Nf6+ {[%clk 0:00:59.5]} 27... Bxf6 {[%clk
0:00:58.6]} 28. Rxf3 {[%clk 0:00:58.7]} 28... Bxf3 {[%clk 0:00:54.7]} 29. Bxf6
{[%clk 0:00:57.6]} 29... Bxe4 {[%clk 0:00:48.9]} 30. Bxd8 {[%clk 0:00:53.2]}
30... Bxc2+ {[%clk 0:00:47.9]} 31. Kxc2 {[%clk 0:00:54.1]} 31... Raxd8 {[%clk
0:00:46.3]} 32. cxd6 {[%clk 0:00:51.8]} 32... Kg7 {[%clk 0:00:43.1]} 33. Rd4
{[%clk 0:00:48]} 33... Re5 {[%clk 0:00:33.7]} 34. Kc3 {[%clk 0:00:47.4]} 34...
Rc5+ {[%clk 0:00:21.9]} 35. Kb4 {[%clk 0:00:47.6]} 35... Rc6 {[%clk 0:00:22.3]}
36. Kxa3 {[%clk 0:00:34.7]} 36... Rcxd6 {[%clk 0:00:21.3]} 37. Rb4 {[%clk
0:00:29.5]} 37... Rd4 {[%clk 0:00:16.9]} 38. Ne2 {[%clk 0:00:30.1]} 38... Ra8+
{[%clk 0:00:15.3]} 39. Ra4 {[%clk 0:00:25.7]} 39... Rdxa4+ {[%clk 0:00:15]} 40.
bxa4 {[%clk 0:00:25]} 40... Rxa4+ {[%clk 0:00:15.9]} 0-1

[Event "Late-Titled-Tuesday-Blitz-October-17-2023"]
[Site "Chess.com"]
[Date "2023.10.17"]
[Round "3"]
[White "johnmez"]
[Black "MathiasWomacka"]
[Result "1/2-1/2"]
[WhiteElo "2349"]
[BlackElo "2533"]
[TimeControl "180+1"]
[EndTime "14:28:25 PDT"]
[Termination "Game drawn by repetition"]

1. d4 {[%clk 0:03:00.9]} 1... Nf6 {[%clk 0:02:58.9]} 2. c4 {[%clk 0:03:00.8]}
2... e6 {[%clk 0:02:59.3]} 3. Nc3 {[%clk 0:03:00.7]} 3... Bb4 {[%clk 0:02:59.6]}
4. e3 {[%clk 0:03:00.6]} 4... c5 {[%clk 0:02:59.3]} 5. Ne2 {[%clk 0:03:00.9]}
5... cxd4 {[%clk 0:02:57.4]} 6. exd4 {[%clk 0:02:59.5]} 6... O-O {[%clk
0:02:58]} 7. a3 {[%clk 0:02:59.4]} 7... Be7 {[%clk 0:02:58.1]} 8. d5 {[%clk
0:02:58.3]} 8... exd5 {[%clk 0:02:57.5]} 9. cxd5 {[%clk 0:02:58.4]} 9... Bc5
{[%clk 0:02:58]} 10. Ng3 {[%clk 0:02:55.8]} 10... d6 {[%clk 0:02:57.9]} 11. Be2
{[%clk 0:02:55.6]} 11... Nbd7 {[%clk 0:02:50.4]} 12. O-O {[%clk 0:02:54.5]}
12... Ne5 {[%clk 0:02:50.1]} 13. Bg5 {[%clk 0:02:50.6]} 13... h6 {[%clk
0:02:47.9]} 14. Bxf6 {[%clk 0:02:43.7]} 14... Qxf6 {[%clk 0:02:48.8]} 15. Nce4
{[%clk 0:02:43.3]} 15... Qh4 {[%clk 0:02:33.2]} 16. b4 {[%clk 0:02:29.7]} 16...
Bb6 {[%clk 0:02:32.8]} 17. Nxd6 {[%clk 0:02:24.5]} 17... Ng4 {[%clk 0:01:46.1]}
18. Bxg4 {[%clk 0:02:14.5]} 18... Bxg4 {[%clk 0:01:47]} 19. Qd2 {[%clk
0:02:04.2]} 19... Qf6 {[%clk 0:01:10.3]} 20. Nxb7 {[%clk 0:01:38.1]} 20... h5
{[%clk 0:01:07.5]} 21. Nc5 {[%clk 0:01:32.8]} 21... h4 {[%clk 0:01:06.8]} 22.
Nge4 {[%clk 0:01:32.4]} 22... Qe5 {[%clk 0:00:52.7]} 23. Qg5 {[%clk 0:01:25.7]}
23... Qxg5 {[%clk 0:00:52]} 24. Nxg5 {[%clk 0:01:24.8]} 24... Rad8 {[%clk
0:00:48.8]} 25. h3 {[%clk 0:01:14.8]} 25... Rxd5 {[%clk 0:00:47.4]} 26. Nge4
{[%clk 0:00:57.8]} 26... Bf5 {[%clk 0:00:44.6]} 27. Rfd1 {[%clk 0:00:55.7]}
27... Rfd8 {[%clk 0:00:43.7]} 28. Rxd5 {[%clk 0:00:45.7]} 28... Rxd5 {[%clk
0:00:44.6]} 29. Rc1 {[%clk 0:00:43.2]} 29... f6 {[%clk 0:00:43.9]} 30. Kf1
{[%clk 0:00:36.2]} 30... Kf7 {[%clk 0:00:42.5]} 31. Ke2 {[%clk 0:00:27.4]} 31...
g5 {[%clk 0:00:30.2]} 32. a4 {[%clk 0:00:23.8]} 32... a5 {[%clk 0:00:21.5]} 33.
b5 {[%clk 0:00:20.7]} 33... Re5 {[%clk 0:00:20.5]} 34. f3 {[%clk 0:00:18.9]}
34... Bg6 {[%clk 0:00:11.8]} 35. Kd2 {[%clk 0:00:16]} 35... Rd5+ {[%clk
0:00:10.2]} 36. Ke2 {[%clk 0:00:14.6]} 36... Re5 {[%clk 0:00:09.9]} 37. Kd2
{[%clk 0:00:14]} 37... Rd5+ {[%clk 0:00:10.2]} 38. Ke2 {[%clk 0:00:13.6]} 38...
Re5 {[%clk 0:00:10.4]} 1/2-1/2

[Event "Late-Titled-Tuesday-Blitz-October-17-2023"]
[Site "Chess.com"]
[Date "2023.10.17"]
[Round "3"]
[White "Alexander_Donchenko"]
[Black "koncheto"]
[Result "1-0"]
[WhiteElo "2879"]
[BlackElo "2553"]
[TimeControl "180+1"]
[EndTime "14:28:26 PDT"]
[Termination "Alexander_Donchenko won by resignation"]

1. Nf3 {[%clk 0:03:00.9]} 1... Nf6 {[%clk 0:02:59.9]} 2. g3 {[%clk 0:03:01]}
2... c5 {[%clk 0:02:54.1]} 3. Bg2 {[%clk 0:03:01.1]} 3... e6 {[%clk 0:02:53.5]}
4. c4 {[%clk 0:02:59.7]} 4... Nc6 {[%clk 0:02:51.6]} 5. O-O {[%clk 0:02:59.5]}
5... b6 {[%clk 0:02:50.9]} 6. d4 {[%clk 0:02:59.7]} 6... cxd4 {[%clk 0:02:50.6]}
7. Nxd4 {[%clk 0:03:00.6]} 7... Bb7 {[%clk 0:02:50.9]} 8. Nc3 {[%clk 0:03:01]}
8... a6 {[%clk 0:02:46.4]} 9. Bf4 {[%clk 0:02:58.7]} 9... Rc8 {[%clk 0:02:33.3]}
10. Rc1 {[%clk 0:02:50.6]} 10... Be7 {[%clk 0:02:20.1]} 11. Nxc6 {[%clk
0:02:46.2]} 11... Bxc6 {[%clk 0:02:17.9]} 12. e4 {[%clk 0:02:46.8]} 12... d6
{[%clk 0:02:14.9]} 13. Qe2 {[%clk 0:02:39]} 13... Qd7 {[%clk 0:02:02.5]} 14.
Rfd1 {[%clk 0:02:37.5]} 14... O-O {[%clk 0:01:10.6]} 15. e5 {[%clk 0:02:31.4]}
15... Ne8 {[%clk 0:01:10.4]} 16. exd6 {[%clk 0:02:18.4]} 16... Nxd6 {[%clk
0:01:08.4]} 17. Ne4 {[%clk 0:02:09.2]} 17... Bxe4 {[%clk 0:01:01.1]} 18. Bxe4
{[%clk 0:02:09.1]} 18... Rfd8 {[%clk 0:01:01.7]} 19. b3 {[%clk 0:02:03.4]} 19...
Qa7 {[%clk 0:00:55]} 20. Bg2 {[%clk 0:02:01.5]} 20... Nf5 {[%clk 0:00:51]} 21.
Be5 {[%clk 0:01:55.5]} 21... Bc5 {[%clk 0:00:45]} 22. Rxd8+ {[%clk 0:01:50.6]}
22... Rxd8 {[%clk 0:00:44.6]} 23. Rd1 {[%clk 0:01:51.5]} 23... Qe7 {[%clk
0:00:31.5]} 24. Be4 {[%clk 0:01:45.8]} 24... Nd4 {[%clk 0:00:20.1]} 25. Bxd4
{[%clk 0:01:21.1]} 25... Bxd4 {[%clk 0:00:19.9]} 26. Kg2 {[%clk 0:01:15.7]}
26... g6 {[%clk 0:00:15.7]} 27. h4 {[%clk 0:01:12.4]} 27... h5 {[%clk 0:00:16]}
28. b4 {[%clk 0:00:53.1]} 28... Qf6 {[%clk 0:00:07]} 29. Bf3 {[%clk 0:00:48.9]}
29... Bc3 {[%clk 0:00:05.7]} 30. c5 {[%clk 0:00:45.7]} 30... Rxd1 {[%clk
0:00:02.2]} 31. Qxd1 {[%clk 0:00:46.6]} 31... Qd4 {[%clk 0:00:02.6]} 32. c6
{[%clk 0:00:12.3]} 32... Qe5 {[%clk 0:00:02.2]} 33. Qd8+ {[%clk 0:00:10.5]}
33... Kg7 {[%clk 0:00:02.4]} 34. c7 {[%clk 0:00:11]} 1-0